bitfinex-derivatives/quotes_ETHF0:USTF0_20240917
["timestamp","ask_amount","ask_price","bid_price","bid_amount"]
[1726591142419,2.71502195,2369.9,2369.8,0.4219]
[1726591142615,4.51764853,2369.9,2369.8,0.4219]
[1726591142811,1.80247696,2369.9,2369.8,0.42191]
[1726591143015,1.80247696,2369.9,2369.7,0.42191]
[1726591143230,2.7136563,2369.9,2369.8,0.42191]
[1726591143411,4.51613326,2369.9,2369.8,0.42191]
[1726591143614,1.80247696,2369.9,2369.8,0.42191]
[1726591144011,2.71344423,2370.2,2369.8,10.22]
[1726591144210,2.71344423,2370.2,2370.0,3.2078]
[1726591144211,1.80247696,2370.2,2370.0,3.2078]
[1726591144514,0.42172,2370.9,2370.3,0.4218]
[1726591144712,1.80247696,2370.4,2370.3,0.42182]
[1726591144926,1.80247696,2370.4,2370.3,3.62962]
[1726591145120,1.80247696,2370.4,2370.0,3.2078]
[1726591145418,1.05433,2370.8,2370.0,3.62965]
[1726591145623,1.80247696,2370.2,2370.0,3.62965]
[1726591145826,1.80247696,2370.2,2370.1,0.42185]
[1726591146123,1.80247696,2370.2,2370.0,3.2078]
[1726591146124,1.80247696,2370.1,2370.0,3.2078]
[1726591146715,1.80247696,2370.1,2369.6,3.2078]
[1726591147023,1.80247696,2369.8,2369.6,3.2078]
[1726591147218,1.80247696,2369.7,2369.6,3.2078]
[1726591147528,1.80247696,2369.7,2369.4,0.42196]
[1726591147828,1.80247696,2369.5,2369.3,3.2078]
[1726591148127,1.80247696,2369.4,2369.3,3.6298]
[1726591148922,1.80247696,2369.4,2369.3,3.2078]
[1726591149430,1.80247696,2369.4,2369.3,3.6298]
[1726591150727,4.26243,2370.2,2369.5,0.42196]
[1726591150930,0.42188,2370.0,2369.6,3.2078]
[1726591151230,3.2078,2370.2,2369.6,3.2078]
[1726591151427,1.80247696,2369.7,2369.6,3.62974]
[1726591151623,1.80247696,2369.7,2369.6,3.2078]
[1726591151834,1.80247696,2369.7,2369.6,3.62974]
[1726591152020,0.42185,2370.2,2369.7,0.42193]
[1726591152326,1.80247696,2369.8,2369.7,0.42193]
[1726591152825,0.42181,2370.4,2370.0,0.42187]
[1726591153129,3.2078,2370.5,2369.9,3.62969]
[1726591153130,1.80247696,2370.0,2369.9,3.62969]
[1726591153623,1.80247696,2370.0,2369.9,3.2078]
[1726591154021,1.80247696,2370.0,2369.9,3.62969]
[1726591155828,1.80247696,2370.0,2369.8,0.4219]
[1726591156021,1.80247696,2369.8,2369.6,3.2078]
[1726591156220,1.80247696,2369.7,2369.6,3.62973]
[1726591159235,0.42182,2370.4,2369.7,1.05482]
[1726591159426,0.42182,2370.4,2370.0,0.42186]
[1726591159733,1.80247696,2370.0,2369.9,3.62968]
[1726591159936,1.80247696,2370.0,2369.9,0.42188]
[1726591160139,1.80247696,2370.0,2369.9,3.62968]
[1726591160431,1.80247696,2370.0,2369.8,0.4219]
[1726591160628,0.42186,2370.1,2369.8,0.4219]
[1726591160629,1.80247696,2369.9,2369.8,0.4219]
[1726591163129,6.34298423,2370.8,2369.8,15.33478]
[1726591163331,0.42176,2370.7,2370.4,3.2078]
[1726591163531,0.42171,2370.9,2370.4,0.4218]
[1726591163731,1.80247696,2370.5,2370.4,0.4218]
[1726591164030,1.80247696,2370.5,2370.3,3.2078]
[1726591164224,1.80247696,2370.4,2370.3,3.62961]
[1726591164831,0.42172,2370.9,2370.4,0.4218]
[1726591165229,3.2078,2371.1,2370.3,3.2078]
[1726591165230,1.80247696,2370.5,2370.3,3.62961]
[1726591165431,1.80247696,2370.4,2370.3,3.62961]
[1726591165630,1.80247696,2370.4,2370.3,3.62962]
[1726591165824,3.2078,2371.1,2370.3,17.4862]
[1726591166041,0.4217,2371.0,2370.6,3.2078]
[1726591166535,1.80247696,2370.7,2370.6,3.2078]
[1726591166731,1.80247696,2370.7,2370.6,3.62957]
[1726591166927,1.80247696,2370.7,2370.6,3.2078]
[1726591167736,1.80247696,2370.7,2370.6,3.62957]
[1726591168534,3.2078,2371.1,2370.8,0.42172]
[1726591168731,3.2078,2371.1,2370.6,11.4862]
[1726591168732,1.80247696,2370.8,2370.7,0.42175]
[1726591170842,1.80247696,2370.8,2370.6,3.2078]
[1726591171034,1.80247696,2370.7,2370.6,3.62955]
[1726591171634,1.80247696,2370.7,2370.6,3.2078]
[1726591171936,1.80247696,2370.7,2370.6,3.62957]
[1726591172527,1.80247696,2370.7,2370.6,4.68399]
[1726591172929,1.80247696,2370.7,2370.6,8.74399]
[1726591173132,4.8920772,2371.7,2371.0,0.42169]
[1726591173133,2.16579044,2371.2,2371.0,0.42169]
[1726591173337,2.16579044,2371.2,2371.1,0.42168]
[1726591173543,1.80247696,2371.1,2371.0,3.2078]
[1726591173733,1.80247696,2371.1,2371.0,3.62949]
[1726591175638,1.80247696,2371.1,2370.7,3.2078]
[1726591175839,0.42165,2371.3,2370.9,0.42171]
[1726591176139,1.80247696,2371.0,2370.9,0.42171]
[1726591176333,1.80247696,2371.0,2370.7,3.2078]
[1726591176537,1.80247696,2370.8,2370.7,3.2078]
[1726591176841,4.06,2370.8,2370.0,3.62967]
[1726591177037,2.71344423,2370.9,2370.0,0.42187]
[1726591177038,1.80247696,2370.1,2370.0,0.42187]
[1726591177235,1.80247696,2370.4,2370.0,3.2078]
[1726591177430,1.80247696,2370.4,2369.9,5.11473]
[1726591177431,1.80247696,2370.4,2370.3,3.62961]
[1726591178645,1.80247696,2370.4,2370.3,3.2078]
[1726591179440,1.80247696,2370.4,2370.0,3.2078]
[1726591179644,1.80247696,2370.1,2370.0,3.2078]
[1726591180435,1.80247696,2370.1,2369.7,3.62972]
[1726591180636,1.80247696,2369.9,2369.8,0.42191]
[1726591181046,1.80247696,2369.9,2369.7,3.2078]
[1726591181438,1.80247696,2369.8,2369.7,3.2078]
[1726591181634,4.51592119,2369.8,2369.7,3.2078]
[1726591182241,4.51592119,2369.8,2369.7,3.62973]
[1726591182242,1.80247696,2369.8,2369.7,3.62973]
[1726591182440,4.51592119,2369.8,2369.7,3.62973]
[1726591182835,4.51592119,2369.8,2369.7,3.2078]
[1726591183335,1.80247696,2369.8,2369.4,3.2078]
[1726591183534,4.52148306,2369.5,2369.3,0.42198]
[1726591183736,1.80247696,2369.5,2369.4,0.42198]
[1726591183933,4.52121203,2369.5,2369.4,0.42198]
[1726591185338,1.80247696,2369.5,2369.4,0.42198]
[1726591186048,2.71949249,2369.5,2369.4,0.42198]
[1726591186241,2.71949249,2369.6,2369.5,0.42196]
[1726591186541,2.71949249,2369.6,2369.5,4.48196]
[1726591186744,2.71884323,2369.6,2369.5,8.70196]
[1726591186944,2.71884323,2369.6,2369.5,8.28]
[1726591187138,2.71989563,2369.6,2369.5,8.28]
[1726591187334,2.71989563,2369.6,2369.5,8.70196]
[1726591189346,2.71989563,2369.6,2369.5,4.64196]
[1726591189540,3.28983189,2369.8,2369.3,7.2678]
[1726591189747,1.80247696,2369.7,2369.6,0.42194]
[1726591189945,1.80247696,2369.7,2369.6,6.91974]
[1726591190447,1.80247696,2369.7,2369.6,6.4978]
[1726591190642,1.80247696,2369.7,2369.6,3.2078]
[1726591190837,1.80247696,2369.7,2369.6,3.62974]
[1726591192749,1.80247696,2369.7,2369.6,6.91974]
[1726591193646,1.80247696,2369.7,2369.6,6.4978]
[1726591193842,1.80247696,2369.7,2369.6,6.91974]
[1726591194149,1.80247696,2369.7,2369.6,6.4978]
[1726591194344,1.80247696,2369.7,2369.6,6.91974]
[1726591194759,1.80247696,2369.7,2369.6,6.4978]
[1726591195058,1.80247696,2369.7,2369.6,6.91974]
[1726591196451,1.80247696,2369.7,2369.6,7.97461]
[1726591196646,1.80247696,2369.7,2369.6,6.91974]
[1726591196846,0.42184,2370.2,2370.0,0.42187]
[1726591196847,1.63207371,2370.2,2370.0,0.42187]
[1726591197050,0.42184,2370.2,2370.0,6.4978]
[1726591197355,3.85642067,2370.1,2369.7,0.42192]
[1726591197547,0.42187,2370.0,2369.7,0.42192]
[1726591197750,1.80247696,2369.8,2369.7,0.42192]
[1726591199559,1.80247696,2369.8,2369.6,6.4978]
[1726591199762,1.80247696,2369.7,2369.6,3.2078]
[1726591199957,2.22440696,2369.7,2369.6,3.2078]
[1726591200156,1.80247696,2369.7,2369.2,3.29]
[1726591200355,1.80247696,2369.3,2369.2,3.71202]
[1726591201964,1.63207371,2369.7,2369.6,0.42194]
[1726591202155,1.63207371,2369.7,2369.0,7.71452937]
[1726591202156,1.80247696,2369.6,2369.5,6.4978]
[1726591202352,1.80247696,2369.9,2369.7,1.05482]
[1726591202555,3.14256858,2370.3,2369.8,10.7178]
[1726591202556,1.63207371,2370.3,2369.8,10.7178]
[1726591202763,1.80247696,2370.3,2370.2,3.62964]
[1726591202951,1.63207371,2370.6,2370.2,3.2078]
[1726591203154,1.63207371,2370.8,2370.6,0.42177]
[1726591203355,1.63207371,2370.8,2370.5,3.29]
[1726591203570,1.80247696,2370.6,2370.5,6.91958]
[1726591204163,1.80247696,2370.6,2370.5,3.62958]
[1726591204561,1.63207371,2371.0,2370.6,0.42176]
[1726591204760,2.59827886,2371.1,2370.6,0.42176]
[1726591204761,3.43455067,2370.7,2370.6,0.42176]
[1726591205064,1.63207371,2370.7,2370.6,0.42176]
[1726591205366,1.63207371,2370.7,2370.6,4.64016]
[1726591205574,1.63207371,2370.8,2370.7,0.42175]
[1726591205768,3.43455067,2370.8,2370.7,0.42175]
[1726591206465,3.43455067,2370.8,2370.7,4.47175]
[1726591206663,1.63207371,2371.1,2370.8,0.42173]
[1726591206866,3.43455067,2371.0,2370.8,3.62952]
[1726591207263,1.63207371,2370.9,2370.8,0.42172]
[1726591207569,3.43455067,2371.0,2370.8,3.62952]
[1726591207761,1.63207371,2371.0,2370.8,3.2078]
[1726591207972,3.43455067,2370.9,2370.8,3.2078]
[1726591208665,3.43455067,2370.9,2370.5,7.67957]
[1726591208972,1.80247696,2370.7,2370.6,0.42177]
[1726591209164,1.80247696,2370.7,2370.5,7.2578]
[1726591209467,1.63207371,2370.8,2370.7,0.42174]
[1726591209665,3.43455067,2370.8,2370.7,0.42174]
[1726591210073,3.43455067,2370.8,2370.6,0.42176]
[1726591210368,1.80247696,2370.6,2370.5,3.2078]
[1726591210569,1.80247696,2370.6,2370.2,4.05]
[1726591210570,3.97907582,2370.6,2370.2,3.2078]
[1726591210773,1.80247696,2370.3,2370.2,3.62964]
[1726591211984,1.80247696,2370.3,2369.9,3.2078]
[1726591212174,1.80247696,2370.0,2369.9,7.2578]
[1726591212365,2.17659886,2370.6,2370.0,0.42187]
[1726591212366,1.80247696,2370.1,2370.0,0.42187]
[1726591212674,1.80247696,2370.3,2370.1,0.42184]
[1726591213076,1.80247696,2370.2,2370.0,0.42187]
[1726591213268,1.80247696,2370.1,2370.0,0.42187]
[1726591213463,2.05381947,2370.4,2370.1,0.42185]
[1726591213464,1.80247696,2370.2,2370.1,0.42185]
[1726591214167,1.80247696,2370.2,2370.0,0.42186]
[1726591214363,1.80247696,2370.1,2370.0,0.42186]
[1726591215277,1.63200947,2370.5,2370.4,0.4218]
[1726591215577,2.17659886,2370.7,2370.2,4.05]
[1726591215578,1.80247696,2370.4,2370.2,4.05]
[1726591215781,1.80247696,2370.4,2370.3,0.42182]
[1726591217879,1.80247696,2370.4,2370.2,4.05]
[1726591217880,1.80247696,2370.4,2370.2,4.47182]
[1726591218180,1.80247696,2370.3,2370.2,4.47184]
[1726591218592,1.80247696,2370.3,2370.0,0.42186]
[1726591218766,1.80247696,2370.1,2370.0,0.42187]
[1726591219977,1.80247696,2370.1,2369.8,3.2078]
[1726591220181,1.80247696,2369.9,2369.8,3.62971]
[1726591220872,1.80247696,2369.9,2369.8,4.68449]
[1726591221675,1.80247696,2369.9,2369.8,3.62971]
[1726591222673,1.80247696,2369.9,2369.8,4.68449]
[1726591224481,1.63200947,2370.3,2369.8,4.68449]
[1726591224482,1.63200947,2370.3,2370.1,0.42184]
[1726591224674,1.63200947,2370.3,2370.2,3.2078]
[1726591224875,1.80247696,2370.3,2370.2,3.2078]
[1726591225878,3.85630643,2370.3,2370.0,3.29]
[1726591226178,1.80247696,2370.1,2369.9,3.62968]
[1726591226379,1.80247696,2370.0,2369.9,3.62968]
[1726591226681,3.43448643,2370.0,2369.6,3.2078]
[1726591226884,4.49132802,2369.7,2369.2,10.6768]
[1726591227179,1.80247696,2369.3,2368.9,3.2078]
[1726591227482,1.80247696,2369.2,2369.1,0.42203]
[1726591228071,1.80247696,2369.2,2368.9,3.2078]
[1726591228277,1.80247696,2369.0,2368.9,3.2078]
[1726591228479,1.80247696,2369.0,2368.8,0.42208]
[1726591228672,1.80247696,2369.0,2368.6,4.05]
[1726591228673,1.80247696,2368.9,2368.7,0.42209]
[1726591228880,1.80247696,2368.9,2368.6,4.05]
[1726591228881,1.80247696,2368.7,2368.6,4.05]
[1726591229078,1.80247696,2368.7,2368.6,0.42212]
[1726591230778,1.80247696,2368.7,2368.5,3.2078]
[1726591230972,1.80247696,2368.6,2368.3,0.42216]
[1726591231179,1.80247696,2368.5,2368.4,0.42216]
[1726591231379,1.80247696,2368.5,2368.4,3.62996]
[1726591231575,1.63322039,2368.9,2368.4,7.4302]
[1726591231881,1.80247696,2368.7,2368.6,3.62991]
[1726591232180,1.80247696,2368.7,2368.6,3.2078]
[1726591232580,1.80247696,2368.7,2368.6,3.62992]
[1726591232788,1.80247696,2368.7,2368.6,3.2078]
[1726591233074,1.80247696,2368.7,2368.6,3.62992]
[1726591233474,1.80247696,2368.7,2368.6,7.67992]
[1726591233677,1.63322039,2369.3,2368.6,18.53471]
[1726591233881,5.38439886,2369.5,2369.1,3.62983]
[1726591233882,1.63322039,2369.4,2369.1,3.62983]
[1726591234079,2.17659886,2369.5,2369.1,3.62983]
[1726591234080,1.63322039,2369.5,2369.1,3.2078]
[1726591234273,1.80247696,2369.4,2369.3,0.42199]
[1726591234681,1.80247696,2369.4,2369.1,3.2078]
[1726591234879,1.80247696,2369.2,2369.1,3.62983]
[1726591235685,2.05514039,2369.8,2369.1,3.62983]
[1726591235686,2.05513039,2369.8,2369.2,0.422]
[1726591235889,1.80247696,2369.3,2369.2,0.422]
[1726591237589,1.80247696,2369.3,2369.1,3.62982]
[1726591237785,1.63322039,2369.9,2369.1,3.62982]
[1726591237786,1.80247696,2369.2,2369.1,3.2078]
[1726591239196,0.43561039,2370.0,2369.6,7.2578]
[1726591239385,2.72074858,2370.4,2370.3,0.42182]
[1726591239582,1.80247696,2370.4,2370.3,3.62962]
[1726591239982,1.80247696,2370.4,2370.3,3.2078]
[1726591240183,1.80247696,2370.4,2370.1,4.05]
[1726591240384,1.80247696,2370.4,2370.3,3.2078]
[1726591241884,1.80247696,2370.4,2370.0,3.2078]
[1726591242083,2.72074858,2370.6,2370.0,3.2078]
[1726591242286,1.80247696,2370.1,2370.0,3.2078]
[1726591243086,1.80247696,2370.1,2369.9,3.2078]
[1726591243285,2.72074858,2370.5,2369.9,3.2078]
[1726591243590,1.80247696,2370.0,2369.9,3.2078]
[1726591243791,2.72074858,2370.7,2370.0,4.2192]
[1726591243982,2.72074858,2370.8,2370.4,4.05]
[1726591244181,2.72074858,2370.8,2370.5,3.2078]
[1726591244586,2.72074858,2370.9,2370.5,3.2078]
[1726591245492,2.72074858,2371.0,2370.5,3.2078]
[1726591246288,3.28983189,2371.2,2370.5,3.2078]
[1726591246289,2.72074858,2370.9,2370.5,3.2078]
[1726591246491,2.72074858,2371.0,2370.5,3.2078]
[1726591246787,2.72074858,2371.1,2370.5,3.2078]
[1726591247393,6.93834858,2371.0,2370.5,3.2078]
[1726591247593,2.72074858,2370.8,2370.5,3.2078]
[1726591248090,4.2184,2370.8,2370.5,3.2078]
[1726591249086,2.72074858,2370.9,2370.5,3.2078]
[1726591249784,6.93914858,2370.8,2370.2,3.2078]
[1726591250095,0.42171,2371.0,2370.2,3.2078]
[1726591250392,0.42169,2371.1,2370.3,0.42181]
[1726591250592,0.42169,2371.0,2370.3,0.42181]
[1726591250994,2.72074858,2371.2,2370.6,3.62957]
[1726591251290,3.2078,2371.3,2370.9,3.2078]
[1726591251485,0.42164,2371.3,2370.9,3.2078]
[1726591251683,4.63924,2371.3,2370.7,0.42174]
[1726591251885,0.42164,2371.3,2370.7,0.42174]
[1726591252087,0.42164,2371.3,2370.9,3.2078]
[1726591252288,2.72074858,2371.6,2370.9,3.2078]
[1726591252490,0.42161,2371.5,2370.9,3.6295]
[1726591252989,0.4216,2371.6,2371.0,0.42169]
[1726591253187,0.42161,2371.5,2370.9,3.6295]
[1726591253592,0.42161,2371.5,2371.0,0.42169]
[1726591253792,0.42161,2371.5,2370.9,3.2078]
[1726591253987,0.42161,2371.5,2371.0,0.42169]
[1726591254197,2.72074858,2371.8,2371.2,3.2078]
[1726591254488,2.72074858,2371.9,2371.2,3.2078]
[1726591254689,0.42163,2371.4,2370.9,3.2078]
[1726591254893,6.98252858,2371.6,2370.9,3.2078]
[1726591255086,0.42163,2371.4,2370.9,3.2078]
[1726591255289,0.42164,2371.3,2370.9,3.2078]
[1726591255594,10.14534858,2371.6,2370.6,3.2078]
[1726591255789,3.62946,2371.3,2370.7,0.42175]
[1726591255992,3.2078,2371.3,2370.9,3.2078]
[1726591256291,3.2078,2371.3,2371.0,0.42169]
[1726591256495,3.62945,2371.3,2370.9,3.2078]
[1726591256800,3.2078,2371.6,2371.2,0.42165]
[1726591256997,3.28983189,2371.3,2371.2,0.42165]
[1726591257196,3.28983189,2371.3,2371.1,0.42167]
[1726591257794,3.28983189,2371.3,2370.9,7.2578]
[1726591257795,3.28983189,2371.3,2371.0,0.42168]
[1726591258294,2.71503813,2371.1,2371.0,0.42168]
[1726591259293,2.71503813,2371.2,2371.0,0.42168]
[1726591259496,2.71503813,2371.2,2371.0,0.42169]
[1726591259692,2.71503813,2371.2,2370.9,7.2578]
[1726591259903,2.71503813,2371.2,2371.0,0.42169]
[1726591260103,2.71503813,2371.2,2370.9,7.2578]
[1726591260301,2.71503813,2371.1,2370.9,3.2078]
[1726591260599,2.71503813,2371.0,2370.9,3.2078]
[1726591261399,4.2176,2371.0,2370.9,3.2078]
[1726591262001,3.28983189,2371.1,2370.9,3.2078]
[1726591262203,3.28983189,2371.1,2370.5,4.179]
[1726591262204,0.42174,2370.8,2370.5,4.179]
[1726591262405,2.71277252,2370.6,2370.4,3.2078]
[1726591263301,2.71277252,2370.6,2370.3,0.42182]
[1726591263498,7.4262,2370.5,2369.6,4.391]
[1726591263696,2.71241559,2369.8,2369.6,4.179]
[1726591263894,3.8381372,2370.2,2369.5,3.2078]
[1726591263895,3.25532703,2370.0,2369.5,3.2078]
[1726591264108,2.71216875,2369.7,2369.5,3.2078]
[1726591264404,2.71216875,2369.8,2369.7,0.42193]
[1726591264709,2.71216875,2369.8,2369.5,3.2078]
[1726591264913,3.25532703,2370.1,2369.5,3.2078]
[1726591264914,2.71216875,2369.7,2369.5,3.62975]
[1726591265096,0.42186,2370.1,2369.5,3.62975]
[1726591265402,0.42188,2370.0,2369.5,3.2078]
[1726591265595,0.42188,2370.0,2369.5,0.42196]
[1726591265800,0.4219,2369.9,2369.2,3.2078]
[1726591265996,0.42188,2370.0,2369.2,3.2078]
[1726591266203,0.42189,2369.9,2369.5,3.2078]
[1726591266513,4.26241,2370.2,2369.2,3.6298]
[1726591266697,3.2078,2369.9,2369.2,3.2078]
[1726591266900,0.42192,2369.8,2369.3,0.422]
[1726591267107,3.6297,2369.9,2369.2,3.2078]
[1726591267401,0.42186,2370.1,2369.6,0.42194]
[1726591267605,0.42188,2370.0,2369.5,3.62975]
[1726591268102,0.42191,2369.8,2369.1,11.4368]
[1726591268308,0.42193,2369.7,2369.3,0.42199]
[1726591269002,0.42192,2369.8,2369.4,3.2078]
[1726591269307,9.42647857,2369.7,2368.6,0.212]
[1726591269499,3.2078,2369.2,2368.3,0.212]
[1726591269703,6.43155857,2369.2,2368.5,0.42213]
[1726591270003,0.42204,2369.1,2368.7,0.42209]
[1726591270212,3.2078,2369.2,2368.4,3.2078]
[1726591270706,0.42213,2368.6,2368.0,3.2078]
[1726591270902,0.42213,2368.6,2368.3,0.42217]
[1726591271506,0.42212,2368.6,2368.3,3.62997]
[1726591271713,0.42211,2368.7,2368.4,0.42215]
[1726591271901,3.2078,2368.9,2368.3,3.2078]
[1726591272107,0.4221,2368.8,2368.5,0.42214]
[1726591272313,0.4221,2368.8,2368.3,3.2078]
[1726591272314,0.42213,2368.6,2368.3,3.2078]
[1726591272506,4.26301,2368.9,2368.3,3.2078]
[1726591272507,3.2078,2368.9,2368.3,3.2078]
[1726591272915,0.42209,2368.8,2368.3,3.2078]
[1726591273112,3.62988,2368.9,2368.3,3.2078]
[1726591273307,0.42204,2369.1,2368.8,0.42208]
[1726591273808,3.2078,2369.2,2368.6,3.2078]
[1726591274015,3.2078,2369.2,2369.0,0.42205]
[1726591274208,1.05482,2369.7,2369.1,0.42202]
[1726591274412,1.05482,2369.7,2369.1,0.42203]
[1726591274413,0.42199,2369.4,2369.1,0.42203]
[1726591274612,0.42198,2369.5,2369.1,0.42202]
[1726591275114,0.42198,2369.4,2369.1,0.42202]
[1726591275315,0.42198,2369.5,2368.8,8.229]
[1726591275501,0.42197,2369.5,2369.2,0.42201]
[1726591275706,0.42195,2369.6,2369.3,0.422]
[1726591275907,0.42205,2369.0,2368.8,4.60109]
[1726591276124,3.2078,2369.2,2368.4,3.2078]
[1726591276415,3.2078,2369.2,2368.6,0.42211]
[1726591276416,0.42208,2368.9,2368.6,0.42211]
[1726591276615,4.26287,2369.2,2368.4,3.2078]
[1726591276919,0.42212,2368.6,2368.4,0.42215]
[1726591277213,3.2078,2368.9,2368.3,4.179]
[1726591277214,0.42216,2368.4,2368.3,4.179]
[1726591277418,0.42217,2368.4,2368.1,0.42221]
[1726591277615,1.05536,2368.5,2367.9,4.179]
[1726591277919,3.2078,2368.6,2368.3,0.42217]
[1726591278115,0.42214,2368.5,2368.3,0.42217]
[1726591278305,0.42216,2368.4,2368.1,0.4222]
[1726591278509,0.42217,2368.4,2368.1,0.4222]
[1726591278710,0.42217,2368.4,2368.0,0.42222]
[1726591278912,4.28930488,2368.9,2368.4,0.42215]
[1726591279118,3.62989,2368.9,2368.5,0.42213]
[1726591279417,3.62989,2368.9,2368.3,3.2078]
[1726591279418,0.4221,2368.8,2368.3,3.2078]
[1726591279607,3.2078,2368.9,2368.3,3.2078]
[1726591279608,3.62988,2368.9,2368.3,3.2078]
[1726591279919,0.42209,2368.8,2368.5,0.42213]
[1726591280520,3.62987,2368.9,2368.3,3.2078]
[1726591280714,3.2078,2368.9,2368.5,0.42213]
[1726591281016,1.50352488,2369.2,2368.8,0.42209]
[1726591281219,0.42202,2369.2,2368.8,0.42208]
[1726591282010,3.2078,2369.3,2368.8,0.42209]
[1726591282217,3.62981,2369.3,2368.9,0.42207]
[1726591282414,3.2078,2369.3,2368.7,3.2078]
[1726591282617,0.42201,2369.3,2368.9,0.42207]
[1726591282821,0.422,2369.3,2368.9,0.42206]
[1726591283326,3.2078,2369.4,2368.9,0.42206]
[1726591283527,3.2078,2369.4,2368.8,0.42208]
[1726591283727,0.42203,2369.2,2368.8,0.42208]
[1726591283923,0.42206,2369.0,2368.6,0.42211]
[1726591284128,0.42206,2369.0,2368.7,0.4221]
[1726591284520,0.42208,2368.9,2368.6,0.42212]
[1726591285230,0.42208,2368.9,2368.6,0.42211]
[1726591285520,3.2078,2369.1,2368.5,0.42213]
[1726591285521,0.42209,2368.8,2368.5,0.42213]
[1726591285726,0.42208,2368.9,2368.6,0.42212]
[1726591285925,4.26277,2369.4,2368.7,3.2078]
[1726591286138,0.42204,2369.1,2368.8,0.42207]
[1726591286519,0.42204,2369.1,2368.7,3.2078]
[1726591286520,0.42202,2369.2,2368.9,0.42205]
[1726591286720,0.42204,2369.1,2368.9,0.42205]
[1726591287029,0.42204,2369.1,2368.4,9.28437]
[1726591287030,1.05487,2369.6,2368.6,3.2078]
[1726591287325,1.05487,2369.6,2369.1,0.42203]
[1726591287529,0.42199,2369.4,2369.2,0.42201]
[1726591288031,0.422,2369.3,2369.1,0.42202]
[1726591288428,3.2078,2369.4,2368.7,4.179]
[1726591288722,1.055,2369.3,2368.6,3.2078]
[1726591288926,1.05505,2369.2,2368.6,3.2078]
[1726591289133,0.42207,2369.0,2368.8,0.42208]
[1726591289824,1.05505,2369.2,2368.6,3.2078]
[1726591289825,0.42208,2368.9,2368.6,3.2078]
[1726591290030,0.4221,2368.8,2368.3,3.2078]
[1726591290226,3.2078,2369.0,2368.5,0.42213]
[1726591290523,3.2078,2369.0,2368.3,3.2078]
[1726591290524,0.4221,2368.8,2368.6,0.42211]
[1726591290729,0.42211,2368.7,2368.6,0.42212]
[1726591291734,1.05518,2368.9,2368.4,0.42215]
[1726591291930,0.42212,2368.6,2368.5,0.42213]
[1726591292123,1.05518,2368.9,2368.3,3.2078]
[1726591292428,0.42215,2368.5,2368.4,0.42216]
[1726591292632,0.42215,2368.5,2368.2,3.2078]
[1726591292933,0.42215,2368.5,2368.4,0.42216]
[1726591294428,0.42214,2368.5,2368.2,3.2078]
[1726591294623,0.42214,2368.5,2368.4,0.42215]
[1726591294928,1.05529,2368.7,2368.2,3.2078]
[1726591295124,0.42215,2368.5,2368.4,0.42216]
[1726591295720,3.2078,2369.0,2368.2,3.2078]
[1726591295925,0.42211,2368.7,2368.6,0.42211]
[1726591296432,0.4221,2368.7,2368.6,0.42211]
[1726591296629,0.42212,2368.6,2368.5,3.62993]
[1726591296827,1.05519,2368.9,2368.6,0.42212]
[1726591296828,0.42212,2368.7,2368.6,0.42212]
[1726591297024,0.42213,2368.6,2368.5,0.42214]
[1726591297430,4.26291,2369.1,2368.4,3.2078]
[1726591297731,4.26291,2369.1,2368.5,0.42212]
[1726591297732,0.42213,2368.6,2368.5,0.42212]
[1726591297930,4.62526894,2369.4,2368.4,4.26318]
[1726591298127,4.62526894,2369.4,2368.8,3.62987]
[1726591298128,1.05507,2369.2,2368.8,3.62987]
[1726591298527,0.42207,2368.9,2368.8,3.62987]
[1726591299029,0.42205,2369.0,2368.5,4.26316]
[1726591299232,0.42205,2369.0,2368.8,0.42208]
[1726591299421,0.42207,2368.9,2368.8,0.42208]
[1726591299725,0.42207,2368.9,2368.7,0.42209]
[1726591299932,0.4221,2368.8,2368.6,0.42211]
[1726591300126,0.42208,2368.9,2368.7,0.4221]
[1726591300325,0.42209,2368.8,2368.6,0.42211]
[1726591300533,0.42208,2368.9,2368.7,0.4221]
[1726591300925,0.42209,2368.8,2368.7,0.4221]
[1726591301233,1.05511,2369.1,2368.7,0.4221]
[1726591301532,0.42208,2368.9,2368.7,0.4221]
[1726591301734,0.42209,2368.8,2368.7,0.4221]
[1726591301927,1.05511,2369.1,2368.5,3.2078]
[1726591302127,0.42207,2368.9,2368.8,0.42208]
[1726591302333,0.42206,2369.0,2368.9,0.42207]
[1726591302532,1.08150488,2369.3,2369.2,0.42202]
[1726591302725,0.42194,2369.7,2369.5,0.42195]
[1726591302929,4.64194,2369.6,2369.5,0.42195]
[1726591303124,4.64194,2369.6,2369.2,3.2078]
[1726591303330,0.42199,2369.4,2369.2,3.2078]
[1726591303527,4.28930488,2369.8,2369.4,0.42197]
[1726591303528,0.42196,2369.5,2369.4,0.42197]
[1726591304124,0.42196,2369.6,2369.5,0.42196]
[1726591304525,0.42196,2369.6,2369.4,0.42197]
[1726591305234,1.50346488,2369.6,2369.4,0.42197]
[1726591305629,1.08150488,2369.7,2369.6,0.42194]
[1726591305939,0.42192,2369.8,2369.6,0.42194]
[1726591306235,0.4219,2369.9,2369.7,0.42192]
[1726591306531,1.08150488,2370.0,2369.5,3.2078]
[1726591306728,1.08150488,2370.0,2369.8,0.42191]
[1726591306729,0.42187,2370.0,2369.8,0.42191]
[1726591306937,0.42187,2370.0,2369.5,3.2078]
[1726591307324,1.50337488,2370.0,2369.7,0.42192]
[1726591307937,1.08150488,2369.9,2369.7,0.42192]
[1726591309236,1.08150488,2369.8,2369.5,3.2078]
[1726591309429,1.08150488,2369.8,2369.7,0.42193]
[1726591309830,1.08150488,2369.8,2369.6,0.42194]
[1726591310226,0.42194,2369.7,2369.2,3.2078]
[1726591310425,1.08150488,2369.6,2369.5,0.42196]
[1726591310729,1.08150488,2369.6,2369.5,3.2078]
[1726591310931,1.08150488,2369.7,2369.6,0.42194]